Cogmind - Beta 16 @@@ ROGUE MODE // 2025.10.26 @ 14:28:06 Player: Rockstar Result: Self-destructed Performance ------------- Evolutions (1) 500 Regions Visited (3) 600 Robots Destroyed (11) 55 Value Destroyed (240) 240 Prototype IDs (0) 0 Alien Tech Used (0) 0 Bonus (0) 0 TOTAL SCORE: 1395 Bonus ------- None Cogmind --------- Core Integrity 400/400 Matter 280/300 Energy 228/250 System Corruption 0% Temperature Cool (0) Movement Treading (160) Location -9/Materials Parts ------- > --- POWER (1) -------- Ion Engine > --- PROPULSION (2) --- Light Treads Light Treads > --- UTILITY (2) ------ Improved Heat Sink Small Storage Unit > --- WEAPON (4) ------- EM Pulse Gun Small Laser Mining Laser Mining Laser > --- INVENTORY (8) ---- Ion Engine Light Ion Engine Targeting Computer Peak State ------------ > --- POWER ------------ Ion Engine > --- PROPULSION ------- Light Treads Light Treads > --- UTILITY ---------- Improved Heat Sink Small Storage Unit > --- WEAPON ----------- EM Pulse Gun Small Laser Mining Laser Mining Laser > --- INVENTORY -------- Ion Engine Light Ion Engine Targeting Computer [Rating: 11] Favorites ----------- Power Ion Engine Engine Ion Engine Propulsion Light Treads Treads Light Treads Utility Small Storage Unit Device Improved Heat Sink Storage Small Storage Unit Weapon Small Laser Energy Gun Small Laser Special Weapon Mining Laser Build | -11 -10 -10 -9 ------- Run | Yrd Mat Min Mat Slots Evolved 2 | . . . 2 Power . | . . . . Propulsion . | . . . . Utility . | . . . . Weapon 2 | . . . 2 Parts Attached 13 | 5 6 . 2 Power 2 | 1 1 . . Engine 2 | 1 1 . . Core . | . . . . Reactor . | . . . . Propulsion 2 | 2 . . . Treads 2 | 2 . . . Leg . | . . . . Wheel . | . . . . Hover . | . . . . Flight . | . . . . Utility 3 | 1 2 . . Device 2 | . 2 . . Storage 1 | 1 . . . Processor . | . . . . Hackware . | . . . . Protection . | . . . . Artifact . | . . . . Weapon 6 | 1 3 . 2 Energy Gun 4 | 1 3 . . Energy Cannon . | . . . . Ballistic Gun . | . . . . Ballistic Cannon . | . . . . Launcher . | . . . . Special Weapon 2 | . . . 2 Impact Weapon . | . . . . Slashing Weapon . | . . . . Piercing Weapon . | . . . . Special Melee Weapon . | . . . . Unidentified Prototypes . | . . . . Parts Lost 1 | . 1 . . Power . | . . . . Propulsion . | . . . . Utility . | . . . . Weapon 1 | . 1 . . Highest Loss Streak 1 | . 1 . . To Critical Strikes . | . . . . Average Backups 3 | 2 2 5 4 Power 1 | . 1 2 2 Propulsion . | . . . . Utility . | . . 1 1 Weapon . | 1 . 2 1 Tool/Special . | . . . . Unused Backups 2 | . . . 2 Power 1 | . . . 1 Propulsion . | . . . . Utility 1 | . . . 1 Weapon . | . . . . Tool/Special . | . . . . Average Slot Usage (%) 98 | . 98 100 88 Engine 13 | . 14 14 11 Treads 27 | . 27 28 22 Device 13 | . 12 14 11 Storage 13 | . 14 14 11 Energy Gun 27 | . 28 28 22 Peak Build Rating 11 | 5 9 9 11 Average Rating 8 | 3 8 9 10 On Entrance 5 | . 5 9 9 Avg Prop Armor Cover (%) . | . . . . Naked Turns . | . . . . Heaviest Build 14 | 11 14 14 . Greatest Support 40 | 40 40 40 . Greatest Overweight (x) 3 | 3 . . . Average Overweight (x) . | . . . . Largest Inventory Capacity 8 | 8 8 8 8 Average Capacity 7 | 7 8 8 8 Most Carried 5 | 3 5 5 4 Average Carried 3 | 2 2 5 3 Final Capacity 8 | 8 8 8 8 Final Carried 5 | 3 5 5 3 Class Distribution -------------------- 100% | Mutant Dominant Class ---------------- Mutant | -10/Materials Mutant | -10/Mines Mutant | -9/Materials Resources | -11 -10 -10 -9 ----------- Run | Yrd Mat Min Mat Matter Collected 315 | 173 142 . . Remotely . | . . . . Salvage Created 427 | . 427 . . Parts 14 | . 14 . . Haulers Intercepted 1 | . 1 . . Recyclers Shooed . | . . . . Parts Field Recycled . | . . . . Retrieved Matter . | . . . . Parts Self-Destructed . | . . . . Prevented . | . . . . Parts Restored . | . . . . Kills | -11 -10 -10 -9 ------- Run | Yrd Mat Min Mat Combat Hostiles Destroyed 9 | . 9 . . Guns 8 | . 8 . . Classes Destroyed 4 | . 4 . . Hauler 1 | . 1 . . Watcher 1 | . 1 . . Swarmer 5 | . 5 . . Grunt 4 | . 4 . . Best Kill Streak 3 | . 3 . . Combat Bots Only 3 | . 3 . . Max Kills in Single Turn 1 | . 1 . . Gunslinging . | . . . . Exploded . | . . . . Melee . | . . . . Uniques/NPCs Destroyed . | . . . . Combat | -11 -10 -10 -9 -------- Run | Yrd Mat Min Mat Hostile Shots Fired 73 | . 73 . . Missed 16 | . 16 . . Hits 57 | . 57 . . Projectile 57 | . 57 . . Critical Strikes 1 | . 1 . . Damage Taken 736 | . 736 . . Core 161 | . 161 . . Absorbed by Shields . | . . . . Regen/Repaired (Parts) 128 | . 128 . . Core Remaining (%) 67 | 100 . 35 . Volleys Fired 38 | . 38 . . Largest 2 | . 2 . . Hottest 80 | . 80 . . Shots Fired 73 | . 73 . . Gun 73 | . 73 . . Cannon . | . . . . Launcher . | . . . . Special . | . . . . Kinetic . | . . . . Thermal 58 | . 58 . . Explosive . | . . . . Electromagnetic 15 | . 15 . . Robot Hit Streak 9 | . 9 . . Robot Miss Streak 5 | . 5 . . Penetration Max . | . . . . Secondary Targets 2 | . 2 . . Max Gunslinging Chain 1 | . 1 . . Shots Hit Robots 50 | . 50 . . Core Hits 19 | . 19 . . Critical Kills . | . . . . Critical Parts Destroyed . | . . . . Critical Strikes . | . . . . Melee Attacks . | . . . . Impact . | . . . . Slashing . | . . . . Piercing . | . . . . Sneak Attacks . | . . . . Combat Hostiles . | . . . . Follow-up Attacks . | . . . . Damage Inflicted 642 | . 642 . . Guns 577 | . 577 . . Cannons . | . . . . Explosions 65 | . 65 . . Melee . | . . . . Ramming . | . . . . Kinetic . | . . . . Thermal 482 | . 482 . . Explosive . | . . . . Electromagnetic 160 | . 160 . . Impact . | . . . . Slashing . | . . . . Piercing . | . . . . Highest Corruption . | . . . . Average Corruption . | . . . . Corruption Purged . | . . . . Corruption Blocked . | . . . . Overload Shots . | . . . . Overflow Damage . | . . . . Projectiles . | . . . . Explosions . | . . . . Melee . | . . . . Knockbacks . | . . . . Impact . | . . . . Kinetic . | . . . . Secondary . | . . . . Self-Inflicted Damage 37 | . 37 . . Shots 1 | . 1 . . Rammed . | . . . . Targets Rammed . | . . . . Kicked . | . . . . Crushed . | . . . . Highest Temperature 402 | . 402 . . Average Temperature 198 | . 198 . . Received Heat Transfer 324 | . 324 . . Effects 8 | . 8 . . Shutdowns 1 | . 1 . . Energy Bleed 1 | . 1 . . Interference 6 | . 6 . . Siege Activations . | . . . . Martial Activations . | . . . . Shielding Activations . | . . . . Robots Disrupted . | . . . . Combat Hostiles . | . . . . Robots Corrupted . | . . . . Combat Hostiles . | . . . . Parts Fried 1 | . 1 . . Impact Corruptions . | . . . . Robots Melted 1 | . 1 . . Combat Hostiles 1 | . 1 . . Parts Melted 1 | . 1 . . Heat Transferred 1100 | . 1100 . . Parts Sabotaged . | . . . . Parts Stolen . | . . . . Parts Stripped . | . . . . Power Chain Reactions 2 | . 2 . . Alert | -11 -10 -10 -9 ------- Run | Yrd Mat Min Mat Maximum Alert Level . | . . . . Low Security (%) 100 | 100 100 100 100 Level 1 . | . . . . Level 2 . | . . . . Level 3 . | . . . . Level 4 . | . . . . Level 5 . | . . . . High Security . | . . . . Max Security . | . . . . Peak Influence 131 | . 131 34 . Initial 34 | . . 34 . Average 34 | . 46 9 . Influence Increases 265 | . 265 . . Destroy 0b10 Robot/C 180 | . 180 . . Destroy 0b10 Robot/NC 10 | . 10 . . Destroy Leader 34 | . 34 . . Successful Hack 6 | . 6 . . Disable Machine 15 | . 15 . . Destroy Structure 5 | . 5 . . Lose Combat Pursuer 15 | . 15 . . Influence Decreases 265 | . 176 89 . Entered New Map 55 | . . 55 . Time Decay 200 | . 166 34 . Lost Part 10 | . 10 . . Squads Dispatched . | . . . . Investigation . | . . . . Extermination . | . . . . Reinforcement . | . . . . Assault . | . . . . Garrison . | . . . . Intercept . | . . . . Searches Triggered . | . . . . Construction Impeded . | . . . . Haulers Reinforced . | . . . . Active Scanning Responses . | . . . . Cargo Convoy Interrupts . | . . . . Stealth | -11 -10 -10 -9 --------- Run | Yrd Mat Min Mat Distress Signals . | . . . . Communications Jammed . | . . . . Distress Signals . | . . . . Times Spotted 14 | . 14 . . Peak Tracking Total 5 | . 5 . . Tactical Retreats 1 | . 1 . . Traps | -11 -10 -10 -9 ------- Run | Yrd Mat Min Mat Traps Triggered . | . . . . Indirectly . | . . . . Trap Hack Attempts . | . . . . Triggered . | . . . . Disarmed . | . . . . Reprogrammed . | . . . . Reused . | . . . . Traps Extracted . | . . . . Installed . | . . . . Triggered . | . . . . Machines | -11 -10 -10 -9 ---------- Run | Yrd Mat Min Mat Machines Disabled 1 | . 1 . . Max in Single Turn 1 | . 1 . . Machines Repaired . | . . . . Machines Dismantled . | . . . . Machines Sabotaged . | . . . . Overloaded Fab Kills . | . . . . Hacking | -11 -10 -10 -9 --------- Run | Yrd Mat Min Mat Machines Accessed 2 | . 2 . . Terminals 1 | . 1 . . Fabricators . | . . . . Repair Stations 1 | . 1 . . Recycling Units . | . . . . Scanalyzers . | . . . . Garrison Access . | . . . . Total Hacks 10 | . 10 . . Successful 7 | . 7 . . Failed 3 | . 3 . . Catastrophic . | . . . . Database Lockouts . | . . . . Manual . | . . . . Terminals 7 | . 7 . . Fabricators . | . . . . Repair Stations 3 | . 3 . . Recycling Units . | . . . . Scanalyzers . | . . . . Garrison Access . | . . . . Terminal Hacks 5 | . 5 . . Robot Analysis 2 | . 2 . . Branch Access Points 1 | . 1 . . Emergency Access Points 1 | . 1 . . Zone Layout 1 | . 1 . . Fabricator Hacks . | . . . . Repair Station Hacks 2 | . 2 . . Scan Component 1 | . 1 . . Repair 1 | . 1 . . Recycling Unit Hacks . | . . . . Scanalyzer . | . . . . Garrison Access Hacks . | . . . . Unauthorized Hacks . | . . . . Terminals . | . . . . Fabricators . | . . . . Repair Stations . | . . . . Recycling Units . | . . . . Scanalyzers . | . . . . Garrison Access . | . . . . Data Cores Recovered . | . . . . Used . | . . . . Hacking Detections 2 | . 2 . . Full Trace Events . | . . . . Feedback Events . | . . . . Feedback Blocked . | . . . . Robot Schematics Acquired . | . . . . Robots Built . | . . . . Authchips . | . . . . Time . | . . . . Total Robot Build Rating . | . . . . Part Schematics Acquired . | . . . . Parts Built . | . . . . Authchips . | . . . . Time . | . . . . Total Part Build Rating . | . . . . Part Studies Acquired . | . . . . Parts Repaired 1 | . 1 . . Time 26 | . 26 . . Parts Recycled . | . . . . Recycled Matter . | . . . . Retrieved Matter . | . . . . Retrieved Components . | . . . . Parts Scanalyzed . | . . . . Part Schematics Acquired . | . . . . Parts Damaged . | . . . . Bothacking | -11 -10 -10 -9 ------------ Run | Yrd Mat Min Mat Used RIF Installer . | . . . . Robots Hacked . | . . . . Non-combat . | . . . . Combat . | . . . . Robot Hacks Applied . | . . . . Relay Couplers Released . | . . . . Fabnet Peak Effective % . | . . . . Robots Rewired . | . . . . Allies Hacked . | . . . . Hacks Repelled . | . . . . Allies | -11 -10 -10 -9 -------- Run | Yrd Mat Min Mat Total Allies . | . . . . Largest Group . | . . . . Highest-Rated Group . | . . . . Highest-Rated Ally . | . . . . Total Orders . | . . . . Ally Attacks . | . . . . Total Damage . | . . . . Kills . | . . . . Allies Corrupted . | . . . . Allies Melted . | . . . . Intel | -11 -10 -10 -9 ------- Run | Yrd Mat Min Mat Active Infowar (turns) 133 | . 133 . . Seismic 133 | . 133 . . Robot Analysis Total 2 | . 2 . . Derelict Logs Recovered 2 | . . 2 . Drone Launches . | . . . . Drone Recoveries . | . . . . Exploration | -11 -10 -10 -9 ------------- Run | Yrd Mat Min Mat Turns Passed 675 | 51 465 157 2 Spaces Moved 310 | 28 183 99 . Core 7 | 7 . . . Treads 303 | 21 183 99 . Legs . | . . . . Wheels . | . . . . Hover . | . . . . Flight . | . . . . Fastest Speed 50 | 50 160 160 . Average Speed 159 | 150 160 160 . Slowest Speed 200 | 200 160 160 . Overloaded Moves . | . . . . Propulsion Burnouts . | . . . . Robots Hopped . | . . . . Potential Cave-ins . | . . . . Cave-ins Triggered . | . . . . Exploration Rate (%) 18 | 4 34 34 1 Regions Visited 3 Branch Regions 1 Pre-discovered Areas . | . . . . Known Exits Taken 1 | . 1 . . Unknown Exits Taken 2 | 1 . 1 . Scrap Searched . | . . . . Spaces Dug . | . . . . Terrain Destroyed 5 | . 5 . . Melee . | . . . . Projectile . | . . . . AOE 5 | . 5 . . Terrain Rammed . | . . . . Walls Destroyed . | . . . . Machines Disabled . | . . . . Actions | -11 -10 -10 -9 --------- Run | Yrd Mat Min Mat Total 416 | 35 281 98 2 Wait 49 | . 49 . . Move 307 | 27 182 98 . Hop . | . . . . Pick Up 6 | 3 3 . . Fast Attach 9 | 5 4 . . Attach 4 | . 2 . 2 Detach . | . . . . Swap 1 | . 1 . . Drop 2 | . 2 . . Fire 38 | . 38 . . Melee . | . . . . Ram . | . . . . Kick . | . . . . Crush . | . . . . Escape Stasis . | . . . . Rewire . | . . . . Trap . | . . . . Miscellaneous . | . . . . Route ------- -11/Scrapyard -10/Materials (discovered 2 exits: *Min x2) -10/Mines -9/Materials (discovered 1 exit: Mat) History --------- Turn | Location | Event 11 | -11/Scrapyard | Discovered new exit (range 15) 52 | -11/Scrapyard | Entered Materials 122 | -10/Materials | Identified exit to Mines 238 | -10/Materials | Core integrity fell below 50% 307 | -10/Materials | Build established: Mutant 348 | -10/Materials | Repaired Lgt. Treads 517 | -10/Materials | Entered Mines 628 | -10/Mines | Learned Materials non-interactive machine intel 631 | -10/Mines | Discovered new exit (range 3) 653 | -10/Mines | Learned location of 1 exit from Materials 674 | -10/Mines | Entered Materials 674 | -9/Materials | Evolved 2 slots: Weapon x2 675 | -9/Materials | Identified exit to Materials 676 | -9/Materials | Loaded intel: 42 non-interactive machine locations 676 | -9/Materials | Self-destructed Last Messages --------------- 00427_ U-05 Engineer lays Concrete. 00431_ R-06 Scavenger collects Lgt. Assault Rifle. 00431_ U-05 Engineer lays Concrete. 00486_ Connecting with Repair Station... 00510_ Acquired Mining Laser. LOCATION=MINES GOAL=ESCAPE Something is scanning the area. 00628_ Acquired derelict log, extracted data. Data stored: Materials non-interactive machine intel. 00631_ EXIT=FOUND 00649_ K-01 Serf collects debris. 00653_ Acquired derelict log, extracted data. Data stored: Materials exits (x1). 00668_ K-01 Serf collects debris. PARAMETERS=WEAPON+2 LOCATION=UNKNOWN GOAL=ESCAPE Loading 1 Materials exit... Loading Materials non-interactive machine intel (x42)... Map ----- +----------------------------------------------------+ | ?????????????????????????????????????????????????? | | ???????????????"""""""???????????????????????????? | | ???????????????"""""""???????????????????????????? | | ???????????????"""""""???????????????????????????? | | ???????????????"""""""???????????????????????????? | | ???????????????"""""""???????????????????????????? | | ?????????????????????????????????????????????????? | | ?????????????????????????????????????????????????? | | ?????????????????????????????????????????????????? | | ?????????????????????????????????????????????????? | | ???????????????????????? ??????????????????????? | | ???????????????????????? ??????????????????????? | | ???????????????????????? ??????????????????????? | | ???????????????????????# #?????????????????????? | | ???????????????????????# #?????????????????????? | | ???????????????????"""?# #?????????????????????? | | ???????????????????"""?+ +?????????????????????? | | ???????????????????"""?# #?????????????????????? | | ???????????????????????# #?????????????????????? | | ???????????????????????# #?????????????????????? | | ???????????????????????# #?????????????????????? | | ????????????????"""????# #????"""??????????????? | | ????????????????"""????# #???"""""?????????????? | | ????????????????"""????+ +???"""""?????????????? | | ???????????????????????# #???"""""?????????????? | | ????????????????"""????# @ #????"""??????????????? | | ????????????????"""????# #?????????????????????? | | ????????????????"""????#####?????????????????????? | | ?????????????????????????????????????????????????? | | ?????????????????????????????????????????????????? | | ?????????????????????????????????????????????????? | | ?????????????????????????????????????????????????? | | ?????????????????????????????????????????????????? | | ?????????????????????????????????????????????????? | | ?????????????????????????????????????????????????? | | ?????????????????????????????????????????????????? | | ?????????????????????????????????????????????????? | | | | | | | | | | | | | | | | | | | | | | | | | | | +----------------------------------------------------+ Best States ------------- Heat Dissipation 39 Energy Generation 10 Energy Capacity 250 Matter Stores 300 Matter Capacity 300 Sight Range 16 Terrain Scan Density 10 Evasion (%) 40 Recoil Reduction 2 Item Schematics ----------------- None Robot Schematics ------------------ None Fabricated ------------ Nothing Repaired ---------- Lgt. Treads | 8% | -10/Materials Studied --------- None Alien Tech Used ----------------- None Achievements -------------- None Challenges ------------ None Game ------ Seed HypercooledImpactChronowheel Manual? 0 Play Time 00:05:57 Cumulative 162.1 hours Start 2025.10.26 @ 14:22:14 End 2025.10.26 @ 14:28:06 Sessions 1 Manual Loads 0 Difficulty Rogue Special Mode None Game No. 154 Rogue 151 Adventurer 1 Explorer 2 Win Type - Total 1 Types 1/0/0/0/0/0/0/0/0/0 Lore% 56 Gallery% 60 Achievement% 31 Wizard Run 0 Options --------- Layout 0 ASCII 0 Keyboard 0 Movement Mouse Keybinds 0 Fullscreen 2 Font 24/Smallcaps Map View 76x50 Zoom Use 0% Tactical HUD 1 Map Filters NONE Filters NONE Steam 1 RUN: 9351496c-fe90-4382-8422-c05423e8564f